fUST/lending_fUST_20250725
["ID","MTS","AMOUNT","RATE_DAILY","PERIOD"]
[374658833,1753403450824,-460.0,0.00018784,2]
[374658834,1753403450833,-671.32,0.00018784,2]
[374658835,1753403450843,-460.0,0.00018784,2]
[374658836,1753403450853,-463.03956493,0.00018784,2]
[374658837,1753403450863,-461.81768093,0.00018784,2]
[374658838,1753403450873,-460.0,0.00018785,2]
[374658839,1753403450882,-578.16749133,0.00018785,2]
[374658840,1753403450891,-361.57264477,0.00018785,2]
[374658841,1753403450901,-460.0,0.00018785,2]
[374658842,1753403450910,-460.0,0.00018785,2]
[374658843,1753403450920,-460.0,0.00018785,2]
[374658844,1753403451007,-460.0,0.00018785,2]
[374658846,1753403451018,-460.0,0.00018785,2]
[374658848,1753403451028,-460.0,0.00018785,2]
[374658850,1753403451037,-8001.42,0.00018785,2]
[374658852,1753403451047,-460.0,0.00018785,2]
[374658854,1753403451056,-532.08037717,0.00018785,2]
[374658856,1753403451065,-3960.81,0.00018785,2]
[374658858,1753403451075,-460.0,0.00018785,2]
[374658860,1753403451084,-833.49,0.00018785,2]
[374658862,1753403451093,-870.13,0.00018785,2]
[374658863,1753403451103,-1140.91,0.00018785,2]
[374658864,1753403451112,-460.0,0.00018785,2]
[374658866,1753403451121,-460.0,0.00018785,2]
[374658867,1753403451131,-3160.07,0.00018785,2]
[374658868,1753403451141,-460.0,0.00018785,2]
[374658869,1753403451151,-3852.66,0.00018785,2]
[374658870,1753403451160,-460.0,0.00018785,2]
[374658871,1753403451170,-1023.4,0.00018785,2]
[374658872,1753403451179,-460.0,0.00018785,2]
[374658873,1753403451189,-460.0,0.00018785,2]
[374658874,1753403451198,-2667.14,0.00018785,2]
[374658875,1753403451207,-1197.8,0.00018785,2]
[374658876,1753403451217,-920.37,0.00018785,2]
[374658877,1753403451227,-460.0,0.00018785,2]
[374658878,1753403451236,-460.0,0.00018786,2]
[374658879,1753403451249,-767.54,0.00018786,2]
[374658880,1753403451260,-460.0,0.00018786,2]
[374658881,1753403451270,-460.0,0.00018786,2]
[374658882,1753403451279,-460.0,0.00018786,2]
[374658883,1753403451290,-460.0,0.00018786,2]
[374658884,1753403451299,-460.0,0.00018786,2]
[374658885,1753403451310,-460.0,0.00018786,2]
[374658886,1753403451320,-701.77,0.00018786,2]
[374658887,1753403451330,-569.95,0.00018786,2]
[374658888,1753403451339,-460.0,0.00018786,2]
[374658889,1753403451348,-460.0,0.00018786,2]
[374658890,1753403451357,-460.0,0.00018786,2]
[374658891,1753403451366,-460.0,0.00018786,2]
[374658892,1753403451375,-460.0,0.00018786,2]
[374658893,1753403451385,-963.68,0.00018786,2]
[374658894,1753403451395,-614.53,0.00018786,2]
[374658895,1753403451404,-460.0,0.00018786,2]
[374658896,1753403451414,-460.0,0.00018786,2]
[374658897,1753403451423,-460.0,0.00018786,2]
[374658898,1753403451432,-1011.84,0.00018786,2]
[374658899,1753403451442,-3080.4,0.00018786,2]
[374658900,1753403451451,-1436.23,0.00018786,2]
[374658901,1753403451461,-460.0,0.00018786,2]
[374658902,1753403451471,-460.0,0.00018786,2]
[374658903,1753403451480,-460.0,0.00018786,2]
[374658904,1753403451491,-460.0,0.00018786,2]
[374658905,1753403451500,-460.0,0.00018786,2]
[374658906,1753403451511,-724.3,0.00018786,2]
[374658907,1753403451521,-460.0,0.00018786,2]
[374658908,1753403451530,-460.0,0.00018786,2]
[374658909,1753403451540,-460.0,0.00018786,2]
[374658910,1753403451549,-460.0,0.00018786,2]
[374658911,1753403451559,-460.0,0.00018786,2]
[374658912,1753403451568,-1192.38,0.00018786,2]
[374658913,1753403451577,-573.91,0.00018786,2]
[374658914,1753403451587,-1046.61,0.00018786,2]
[374658915,1753403451597,-460.0,0.00018786,2]
[374658916,1753403451606,-460.0,0.00018786,2]
[374658917,1753403451616,-460.0,0.00018786,2]
[374658918,1753403451626,-1132.12,0.00018786,2]
[374658919,1753403451635,-460.0,0.00018786,2]
[374658920,1753403451645,-1506.06,0.00018786,2]
[374658921,1753403451655,-460.0,0.00018786,2]
[374658922,1753403451664,-460.0,0.00018786,2]
[374658923,1753403451674,-460.0,0.00018786,2]
[374658924,1753403451684,-460.0,0.00018786,2]
[374658925,1753403451693,-460.0,0.00018786,2]
[374658926,1753403451703,-460.0,0.00018786,2]
[374658927,1753403451712,-460.0,0.00018786,2]
[374658928,1753403451722,-460.0,0.00018786,2]
[374658929,1753403451731,-460.0,0.00018786,2]
[374658930,1753403451741,-460.0,0.00018786,2]
[374658931,1753403451750,-411.91320894,0.00018788,2]
[374658932,1753403451761,-460.0,0.00018788,2]
[374658933,1753403451771,-460.0,0.00018788,2]
[374658934,1753403451780,-460.0,0.00018789,2]
[374658935,1753403451790,-460.0,0.00018789,2]
[374658936,1753403451799,-460.0,0.00018789,2]
[374658937,1753403451809,-460.0,0.00018789,2]
[374658938,1753403451818,-460.0,0.00018789,2]
[374658939,1753403451828,-460.0,0.00018789,2]
[374658940,1753403451837,-460.0,0.00018789,2]
[374658941,1753403451848,-460.0,0.00018789,2]
[374658942,1753403451857,-460.0,0.00018789,2]
[374658943,1753403451867,-364.27130797,0.00018789,2]
[374658944,1753403451876,-757.41,0.00018789,2]
[374658945,1753403451885,-460.0,0.00018789,2]
[374658946,1753403451895,-460.0,0.00018789,2]
[374658947,1753403451905,-460.0,0.00018789,2]
[374658948,1753403451914,-460.0,0.00018789,2]
[374658949,1753403451923,-460.0,0.00018789,2]
[374658950,1753403451933,-460.0,0.00018789,2]
[374658951,1753403451943,-448.16959922,0.00018789,2]
[374658952,1753403451952,-460.0,0.00018789,2]
[374658953,1753403451962,-460.0,0.00018789,2]
[374658954,1753403451972,-462.97220982,0.00018789,2]
[374658955,1753403451982,-460.0,0.00018789,2]
[374658956,1753403451991,-604.97852111,0.00018789,2]
[374658957,1753403452001,-460.0,0.00018789,2]
[374658958,1753403452010,-460.0,0.00018789,2]
[374658959,1753403452020,-460.0,0.00018789,2]
[374658960,1753403452029,-460.0,0.00018789,2]
[374658961,1753403452038,-460.0,0.00018789,2]
[374658962,1753403452048,-460.0,0.00018789,2]
[374658963,1753403452058,-460.0,0.00018789,2]
[374658964,1753403452067,-460.0,0.00018789,2]
[374658965,1753403452077,-460.0,0.00018789,2]
[374658966,1753403452087,-460.0,0.00018789,2]
[374658967,1753403452097,-460.0,0.00018789,2]
[374658968,1753403452107,-181.0372985,0.00018789,2]
[374658969,1753403452116,-777.25,0.00018789,2]
[374658970,1753403452126,-460.0,0.00018789,2]
[374658971,1753403452136,-1547.17,0.00018789,2]
[374658972,1753403452145,-491.13402689,0.00018789,2]
[374658973,1753403452155,-460.0,0.00018789,2]
[374658974,1753403452165,-460.0,0.00018789,2]
[374658975,1753403452174,-460.0,0.00018789,2]
[374658976,1753403452184,-460.0,0.00018789,2]
[374658977,1753403452193,-460.0,0.00018789,2]
[374658980,1753403452271,-1507.8,0.00018789,2]
[374658981,1753403452281,-460.0,0.00018789,2]
[374658982,1753403452291,-1157.67,0.00018789,2]
[374658983,1753403452300,-491.14,0.00018789,2]
[374658984,1753403452311,-481.62,0.00018789,2]
[374658985,1753403452321,-460.0,0.00018789,2]
[374658986,1753403452330,-1071.58,0.00018789,2]
[374658988,1753403452340,-877.32,0.00018789,2]
[374658990,1753403452350,-515.87135275,0.00018789,2]
[374658992,1753403452359,-460.0,0.00018789,2]
[374658994,1753403452369,-572.88,0.00018789,2]
[374658996,1753403452378,-460.0,0.00018789,2]
[374658998,1753403452388,-460.0,0.00018789,2]
[374659000,1753403452397,-1264.56,0.00018789,2]
[374659002,1753403452407,-460.0,0.00018789,2]
[374659004,1753403452416,-460.0,0.00018789,2]
[374659006,1753403452426,-460.0,0.00018789,2]
[374659008,1753403452435,-460.0,0.0001879,2]
[374659010,1753403452445,-460.0,0.0001879,2]
[374659012,1753403452454,-460.0,0.0001879,2]
[374659014,1753403452464,-460.0,0.0001879,2]
[374659016,1753403452473,-610.19,0.0001879,2]
[374659018,1753403452482,-5845.77,0.0001879,2]
[374659020,1753403452492,-2552.59,0.0001879,2]
[374659022,1753403452502,-2511.43,0.0001879,2]
[374659024,1753403452512,-460.0,0.0001879,2]
[374659026,1753403452522,-460.0,0.00018791,2]
[374659028,1753403452532,-460.0,0.00018791,2]
[374659030,1753403452541,-460.0,0.00018791,2]
[374659032,1753403452550,-460.0,0.00018791,2]
[374659034,1753403452560,-460.0,0.00018791,2]
[374659036,1753403452569,-247.71050629,0.00018791,2]
[374659038,1753403452578,-460.0,0.00018791,2]
[374659040,1753403452587,-460.0,0.00018791,2]
[374659042,1753403452596,-460.0,0.00018791,2]
[374659044,1753403452605,-597.39,0.00018791,2]
[374659046,1753403452615,-460.0,0.00018791,2]
[374659048,1753403452624,-944.16,0.00018791,2]
[374659050,1753403452634,-460.0,0.00018791,2]
[374659052,1753403452644,-460.0,0.00018791,2]
[374659054,1753403452653,-1040.64,0.00018791,2]
[374659055,1753403452663,-460.0,0.00018791,2]
[374659057,1753403452673,-606.81,0.00018791,2]
[374659059,1753403452683,-863.85,0.00018791,2]
[374659061,1753403452693,-460.0,0.00018791,2]
[374659063,1753403452702,-748.89,0.00018791,2]
[374659065,1753403452712,-460.0,0.00018791,2]
[374659067,1753403452722,-460.0,0.00018791,2]
[374659069,1753403452732,-460.0,0.00018791,2]
[374659071,1753403452742,-460.0,0.00018791,2]
[374659072,1753403452752,-460.0,0.00018791,2]
[374659073,1753403452765,-814.22,0.00018791,2]
[374659074,1753403452775,-460.0,0.00018791,2]
[374659075,1753403452784,-460.0,0.00018791,2]
[374659076,1753403452793,-460.0,0.00018791,2]
[374659077,1753403452803,-1314.45,0.00018791,2]
[374659078,1753403452813,-1394.83,0.00018791,2]
[374659079,1753403452822,-460.0,0.00018791,2]
[374659080,1753403452832,-460.0,0.00018791,2]
[374659081,1753403452841,-460.0,0.00018791,2]
[374659082,1753403452852,-460.0,0.00018791,2]
[374659083,1753403452861,-629.64,0.00018791,2]
[374659084,1753403452871,-1301.85,0.00018791,2]
[374659085,1753403452881,-358.20810541,0.00018791,2]
[374659086,1753403452890,-460.0,0.00018791,2]
[374659087,1753403452901,-460.0,0.00018791,2]
[374659088,1753403452910,-762.27,0.00018791,2]
[374659089,1753403452920,-460.0,0.00018791,2]
[374659090,1753403452929,-460.0,0.00018791,2]
[374659091,1753403452939,-460.0,0.00018791,2]
[374659092,1753403452948,-460.0,0.00018791,2]
[374659093,1753403452959,-460.0,0.00018791,2]
[374659094,1753403452968,-654.44,0.00018791,2]
[374659095,1753403452978,-460.0,0.00018791,2]
[374659096,1753403452988,-460.0,0.00018791,2]
[374659097,1753403452998,-460.0,0.00018791,2]
[374659098,1753403453009,-583.62,0.00018791,2]
[374659099,1753403453019,-611.33,0.00018791,2]
[374659100,1753403453028,-696.94,0.00018791,2]
[374659101,1753403453038,-938.95,0.00018791,2]
[374659102,1753403453048,-460.9834125,0.00018791,2]
[374659103,1753403453058,-460.0,0.00018791,2]
[374659104,1753403453068,-584.1,0.00018791,2]
[374659105,1753403453078,-460.0,0.00018791,2]
[374659106,1753403453087,-1418.18,0.00018791,2]
[374659107,1753403453097,-1188.07,0.00018791,2]
[374659108,1753403453106,-460.0,0.00018791,2]
[374659109,1753403453118,-460.0,0.00018791,2]
[374659110,1753403453128,-756.86,0.00018791,2]
[374659111,1753403453138,-460.0,0.00018791,2]
[374659112,1753403453148,-2548.02,0.00018791,2]
[374659113,1753403453159,-460.0,0.00018791,2]
[374659115,1753403453169,-577.6552115,0.000188,2]
[374659117,1753403453178,-577.6552115,0.000188,2]
[374659119,1753403453188,-577.6552115,0.000188,2]
[374659121,1753403453197,-577.6552115,0.000188,2]
[374659123,1753403453207,-577.6552115,0.000188,2]
[374659125,1753403453216,-1035.6901492,0.000188,2]
[374659127,1753403453225,-577.6552115,0.000188,2]
[374659129,1753403453235,-577.6552115,0.000188,2]
[374659131,1753403453247,-577.6552115,0.000188,2]
[374659133,1753403453256,-577.6552115,0.000188,2]
[374659135,1753403453266,-574.8187695,0.000188,2]
[374659137,1753403453275,-151.0,0.000188,2]
[374659139,1753403453285,-460.0,0.00018815,2]
[374659141,1753403453296,-568.95,0.00018815,2]
[374659143,1753403453306,-460.0,0.00018815,2]
[374659145,1753403453316,-460.0,0.00018815,2]
[374659147,1753403453326,-460.0,0.00018815,2]
[374659149,1753403453336,-460.0,0.00018815,2]
[374659151,1753403453346,-460.0,0.00018815,2]
[374659153,1753403453356,-460.0,0.00018815,2]
[374659155,1753403453366,-460.0,0.00018815,2]
[374659157,1753403453376,-460.0,0.00018815,2]
[374659159,1753403453386,-460.0,0.00018815,2]
[374659169,1753403453462,-460.0,0.00018815,2]
[374659171,1753403453472,-460.0,0.00018815,2]
[374659173,1753403453481,-460.0,0.00018815,2]
[374659175,1753403453491,-460.0,0.00018815,2]
[374659177,1753403453500,-460.0,0.00018815,2]
[374659179,1753403453511,-677.81,0.00018815,2]
[374659181,1753403453522,-460.0,0.00018815,2]
[374659183,1753403453531,-460.0,0.00018815,2]
[374659185,1753403453541,-462.35061308,0.00018815,2]
[374659187,1753403453550,-460.0,0.00018815,2]
[374659189,1753403453559,-301.00433461,0.00018815,2]
[374659191,1753403453570,-460.0,0.00018817,2]
[374659193,1753403453579,-460.0,0.00018817,2]
[374659195,1753403453588,-460.0,0.00018817,2]
[374659197,1753403453598,-460.0,0.00018819,2]
[374659199,1753403453607,-838.89,0.00018819,2]
[374659201,1753403453616,-154.39640782,0.00018819,2]
[374659203,1753403453626,-460.0,0.00018819,2]
[374659205,1753403453636,-460.0,0.00018819,2]
[374659207,1753403453646,-460.0,0.00018819,2]
[374659209,1753403453655,-460.0,0.00018819,2]
[374659211,1753403453665,-460.0,0.00018819,2]
[374659213,1753403453675,-460.0,0.00018819,2]
[374659215,1753403453684,-597.62642703,0.00018819,2]
[374659217,1753403453694,-879.6,0.00018819,2]
[374659219,1753403453704,-460.0,0.00018819,2]
[374659221,1753403453714,-460.0,0.00018819,2]
[374659223,1753403453723,-460.0,0.00018819,2]
[374659225,1753403453733,-460.0,0.00018819,2]
[374659227,1753403453742,-460.0,0.00018819,2]
[374659229,1753403453752,-1019.32,0.00018819,2]
[374659231,1753403453764,-460.0,0.00018819,2]
[374659233,1753403453773,-461.53923398,0.00018819,2]
[374659235,1753403453783,-460.0,0.00018819,2]
[374659237,1753403453793,-460.0,0.00018819,2]
[374659239,1753403453803,-452.05898746,0.00018819,2]
[374659241,1753403453812,-460.79978135,0.00018819,2]
[374659243,1753403453822,-460.0,0.00018819,2]
[374659245,1753403453831,-460.0,0.00018819,2]
[374659247,1753403453843,-460.0,0.00018819,2]
[374659249,1753403453854,-460.0,0.00018819,2]
[374659251,1753403453864,-518.36,0.00018819,2]
[374659253,1753403453873,-600.0,0.0001882,2]
[374659255,1753403453883,-1005.7834431,0.00018821,2]
[374659257,1753403453893,-500.0,0.00018821,2]
[374659259,1753403453903,-1000.0,0.00018821,2]
[374659261,1753403453912,-1000.0,0.00018821,2]
[374659263,1753403453922,-1000.0,0.00018821,2]
[374659265,1753403453931,-1000.0,0.00018821,2]
[374659267,1753403453941,-1000.0,0.00018821,2]
[374659269,1753403453950,-517.57490607,0.00018821,2]
[374659271,1753403453960,-1000.0,0.00018821,2]
[374659273,1753403453971,-246.91406396,0.00018821,2]
[374659276,1753403453992,-345.0,0.00018877,2]
[374659279,1753403454010,-577.6552115,0.000189,2]
[374659282,1753403454028,-151.0,0.000189,2]
[374659285,1753403454050,-4836.40217328,0.000189,2]
[374659288,1753403454070,-266.56816652,0.000189,2]
[374659291,1753403454089,-1168.00721077,0.00018918,2]
[374659294,1753403454106,-345.0,0.00018927,2]
[374659296,1753403454121,-3591.58,0.00018977,2]
[374659299,1753403454137,-460.0,0.00018977,2]
[374659302,1753403454154,-541.22,0.00018977,2]
[374659305,1753403454174,-1056.91,0.00018977,2]
[374659307,1753403454190,-1275.35,0.00018977,2]
[374659310,1753403454205,-218.61422793,0.00018977,2]
[374659313,1753403454222,-3097.91,0.00018977,2]
[374659315,1753403454238,-4502.54,0.00018977,2]
[374659318,1753403454255,-3669.95,0.00018977,2]
[374659320,1753403454269,-460.0,0.00018977,2]
[374659323,1753403454285,-345.0,0.00018986,2]
[374659325,1753403454299,-345.0,0.00018986,2]
[374659328,1753403454315,-460.0,0.00018989,2]
[374659330,1753403454329,-460.0,0.00018989,2]
[374659333,1753403454343,-497.93,0.00018989,2]
[374659335,1753403454357,-487.29,0.00018989,2]
[374659338,1753403454372,-445.93920205,0.00018989,2]
[374659340,1753403454386,-460.0,0.00018989,2]
[374659342,1753403454400,-460.0,0.00018989,2]
[374659345,1753403454413,-468.15342368,0.00018989,2]
[374659347,1753403454428,-526.80176444,0.00018989,2]
[374659350,1753403454442,-713.91,0.00018989,2]
[374659352,1753403454457,-217.0238509,0.00018989,2]
[374659355,1753403454471,-1821.3,0.00018989,2]
[374659357,1753403454485,-613.0,0.00018989,2]
[374659360,1753403454502,-669.88,0.00018989,2]
[374659362,1753403454520,-460.0,0.00018989,2]
[374659365,1753403454535,-460.0,0.00018989,2]
[374659368,1753403454549,-914.47,0.00018989,2]
[374659370,1753403454564,-781.02,0.00018989,2]
[374659373,1753403454580,-460.0,0.00018989,2]
[374659375,1753403454595,-460.0,0.00018989,2]
[374659378,1753403454609,-460.0,0.00018989,2]
[374659380,1753403454627,-460.0,0.00018989,2]
[374659383,1753403454641,-460.0,0.00018989,2]
[374659385,1753403454656,-460.0,0.00018989,2]
[374659388,1753403454673,-460.0,0.00018989,2]
[374659391,1753403454688,-460.0,0.00018989,2]
[374659393,1753403454703,-460.0,0.00018989,2]
[374659396,1753403454717,-460.0,0.00018989,2]
[374659398,1753403454732,-721.46,0.00018989,2]
[374659401,1753403454746,-460.0,0.00018989,2]
[374659403,1753403454763,-460.0,0.00018989,2]
[374659406,1753403454777,-505.29,0.00018989,2]
[374659408,1753403454792,-460.0,0.00018989,2]
[374659421,1753403454905,-460.0,0.00018989,2]
[374659423,1753403454922,-460.0,0.00018989,2]
[374659425,1753403454933,-442.18712251,0.00018989,2]
[374659427,1753403454943,-1720.45,0.00018989,2]
[374659429,1753403454952,-460.0,0.00018989,2]
[374659431,1753403454962,-667.86,0.00018989,2]
[374659433,1753403454972,-460.0,0.00018989,2]
[374659435,1753403454981,-460.0,0.00018989,2]
[374659437,1753403454991,-460.0,0.00018989,2]
[374659439,1753403455001,-571.66105847,0.00018989,2]
[374659441,1753403455013,-460.0,0.00018989,2]
[374659443,1753403455022,-460.0,0.00018989,2]
[374659445,1753403455032,-460.0,0.00018989,2]
[374659447,1753403455041,-460.0,0.00018989,2]
[374659449,1753403455051,-460.0,0.00018989,2]
[374659451,1753403455061,-460.0,0.00018989,2]
[374659453,1753403455070,-460.0,0.00018989,2]
[374659455,1753403455080,-815.21,0.00018989,2]
[374659457,1753403455090,-460.0,0.00018989,2]
[374659459,1753403455100,-460.0,0.00018989,2]
[374659461,1753403455110,-460.0,0.00018989,2]
[374659463,1753403455119,-460.0,0.00018989,2]
[374659465,1753403455129,-460.0,0.00018989,2]
[374659467,1753403455138,-658.4,0.00018989,2]
[374659469,1753403455148,-460.0,0.00018989,2]
[374659471,1753403455157,-460.0,0.00018989,2]
[374659473,1753403455168,-467.23,0.00018989,2]
[374659475,1753403455177,-460.0,0.00018989,2]
[374659477,1753403455186,-500.0,0.00018989,2]
[374659479,1753403455196,-848.09,0.00018989,2]
[374659481,1753403455205,-460.0,0.00018989,2]
[374659483,1753403455214,-151.0,0.00019,2]
[374659485,1753403455223,-345.0,0.00019006,2]
[374659487,1753403455233,-11412.3638234,0.0001905,2]
[374659489,1753403455242,-460.0,0.00019056,2]
[374659491,1753403455254,-460.0,0.00019056,2]
[374659493,1753403455267,-914.31,0.00019056,2]
[374659495,1753403455277,-460.0,0.00019056,2]
[374659497,1753403455286,-829.03,0.00019056,2]
[374659499,1753403455296,-2681.77,0.00019056,2]
[374659501,1753403455306,-460.0,0.00019058,2]
[374659503,1753403455316,-460.0,0.00019058,2]
[374659505,1753403455325,-460.0,0.00019058,2]
[374659507,1753403455335,-584.30089158,0.00019058,2]
[374659509,1753403455344,-597.798227,0.00019058,2]
[374659511,1753403455354,-671.32,0.00019058,2]
[374659513,1753403455364,-290.68906213,0.00019058,2]
[374659515,1753403455374,-604.04497973,0.00019059,2]
[374659517,1753403455384,-460.0,0.00019059,2]
[374659519,1753403455393,-460.0,0.00019059,2]
[374659521,1753403455402,-460.0,0.00019059,2]
[374659523,1753403455412,-210.76157788,0.00019059,2]
[374659525,1753403455423,-8001.42,0.00019059,2]
[374659527,1753403455432,-460.0,0.00019059,2]
[374659529,1753403455442,-3960.81,0.00019059,2]
[374659531,1753403455451,-460.0,0.00019059,2]
[374659533,1753403455461,-833.49,0.00019059,2]
[374659535,1753403455470,-870.13,0.00019059,2]
[374659537,1753403455480,-1140.91,0.00019059,2]
[374659539,1753403455490,-460.0,0.00019059,2]
[374659541,1753403455499,-460.0,0.00019059,2]
[374659543,1753403455511,-3160.07,0.00019059,2]
[374659545,1753403455520,-460.0,0.00019059,2]
[374659547,1753403455530,-3852.66,0.00019059,2]
[374659549,1753403455540,-460.0,0.00019059,2]
[374659551,1753403455549,-1023.4,0.00019059,2]
[374659553,1753403455559,-465.64436908,0.00019059,2]
[374659554,1753403455567,-460.0,0.00019059,2]
[374659555,1753403455577,-2667.14,0.00019059,2]
[374659556,1753403455586,-1197.8,0.00019059,2]
[374659557,1753403455595,-920.37,0.00019059,2]
[374659558,1753403455604,-460.0,0.00019059,2]
[374659559,1753403455613,-460.0,0.0001906,2]
[374659560,1753403455622,-767.54,0.0001906,2]
[374659561,1753403455631,-460.0,0.0001906,2]
[374659562,1753403455640,-252.02476564,0.0001906,2]
[374659563,1753403455650,-460.0,0.0001906,2]
[374659564,1753403455659,-460.0,0.0001906,2]
[374659565,1753403455668,-701.77,0.0001906,2]
[374659566,1753403455678,-569.95,0.0001906,2]
[374659568,1753403455688,-460.0,0.0001906,2]
[374659570,1753403455697,-460.0,0.0001906,2]
[374659572,1753403455707,-460.0,0.0001906,2]
[374659574,1753403455717,-546.4533556,0.0001906,2]
[374659576,1753403455727,-460.0,0.0001906,2]
[374659578,1753403455736,-963.68,0.0001906,2]
[374659580,1753403455746,-614.53,0.0001906,2]
[374659582,1753403455755,-269.86090348,0.0001906,2]
[374659584,1753403455766,-460.0,0.0001906,2]
[374659586,1753403455775,-460.0,0.0001906,2]
[374659588,1753403455785,-1011.84,0.0001906,2]
[374659591,1753403455795,-3080.4,0.0001906,2]
[374659593,1753403455804,-1436.23,0.0001906,2]
[374659595,1753403455814,-460.0,0.0001906,2]
[374659597,1753403455824,-460.0,0.0001906,2]
[374659599,1753403455834,-460.0,0.0001906,2]
[374659601,1753403455844,-460.0,0.0001906,2]
[374659603,1753403455854,-460.0,0.0001906,2]
[374659605,1753403455863,-724.3,0.0001906,2]
[374659607,1753403455873,-460.0,0.0001906,2]
[374659609,1753403455883,-460.0,0.0001906,2]
[374659611,1753403455893,-460.0,0.0001906,2]
[374659613,1753403455902,-460.0,0.0001906,2]
[374659615,1753403455912,-460.0,0.0001906,2]
[374659617,1753403455921,-1192.38,0.0001906,2]
[374659619,1753403455931,-573.91,0.0001906,2]
[374659621,1753403455941,-1046.61,0.0001906,2]
[374659623,1753403455951,-158.40065603,0.0001906,2]
[374659625,1753403455960,-460.0,0.0001906,2]
[374659627,1753403455970,-460.0,0.0001906,2]
[374659629,1753403455980,-1132.12,0.0001906,2]
[374659631,1753403455990,-460.0,0.0001906,2]
[374659634,1753403455999,-1506.06,0.0001906,2]
[374659635,1753403456010,-460.0,0.0001906,2]
[374659637,1753403456020,-460.0,0.0001906,2]
[374659640,1753403456030,-460.0,0.0001906,2]
[374659642,1753403456040,-460.0,0.0001906,2]
[374659644,1753403456049,-460.0,0.0001906,2]
[374659646,1753403456059,-460.0,0.0001906,2]
[374659648,1753403456069,-460.0,0.0001906,2]
[374659650,1753403456078,-460.0,0.0001906,2]
[374659652,1753403456088,-460.0,0.0001906,2]
[374659654,1753403456098,-460.0,0.0001906,2]
[374659656,1753403456107,-460.0,0.00019062,2]
[374659658,1753403456117,-460.0,0.00019063,2]
[374659660,1753403456126,-428.23895884,0.00019063,2]
[374659662,1753403456136,-460.0,0.00019063,2]
[374659664,1753403456146,-460.0,0.00019063,2]
[374659666,1753403456155,-460.0,0.00019063,2]
[374659668,1753403456164,-408.84163523,0.00019063,2]
[374659669,1753403456175,-460.0,0.00019063,2]
[374659671,1753403456184,-210.26760973,0.00019063,2]
[374659673,1753403456194,-757.41,0.00019063,2]
[374659675,1753403456203,-460.0,0.00019063,2]
[374659678,1753403456213,-460.0,0.00019063,2]
[374659679,1753403456222,-460.0,0.00019063,2]
[374659682,1753403456233,-460.0,0.00019063,2]
[374659683,1753403456242,-460.0,0.00019063,2]
[374659686,1753403456252,-460.0,0.00019063,2]
[374659688,1753403456267,-460.0,0.00019063,2]
[374659690,1753403456287,-460.0,0.00019063,2]
[374659692,1753403456310,-477.27164868,0.00019063,2]
[374659694,1753403456321,-461.75750865,0.00019063,2]
[374659696,1753403456331,-777.25,0.00019063,2]
[374659698,1753403456340,-460.0,0.00019063,2]